fUST/lending_fUST_20240926
["ID","MTS","AMOUNT","RATE_DAILY","PERIOD"]
[339203572,1727319948686,-4037.34576792,0.00014522,2]
[339203576,1727320119635,164.327352,0.00013014,2]
[339204221,1727320232619,-276.68111885,0.00014521,2]
[339204263,1727320238995,-23.31888115,0.00014521,2]
[339204264,1727320239006,-300.0,0.00014521,2]
[339204265,1727320239019,-125.27509306,0.00014522,2]
[339204300,1727320243690,-558.74182828,0.00014522,2]
[339204368,1727320246503,-517.73794032,0.00014522,2]
[339204399,1727320440045,500.0,0.00021999,120]
[339204400,1727320440310,341.8729627,0.00021999,120]
[339204419,1727320725665,164.327352,0.00013014,2]
[339204420,1727320737393,162.282676,0.00014008,2]
[339204421,1727320737621,162.282676,0.00014074,2]
[339204422,1727320828087,284.4092275,0.00013699,2]
[339204423,1727320917918,163.892066,0.00013699,2]
[339204427,1727321021477,24900.0,0.00013513,2]
[339204428,1727321061173,250.0,0.00013839,2]
[339204448,1727321278105,164.327352,0.00013014,2]
[339204450,1727321347137,-164.734221,0.00014115,2]
[339204451,1727321347162,-164.734221,0.00014161,2]
[339204452,1727321347184,-164.734221,0.00014207,2]
[339204453,1727321347205,-164.734221,0.00014253,2]
[339204454,1727321347240,-164.734221,0.00014299,2]
[339204455,1727321370238,-164.734221,0.00014345,2]
[339204456,1727321370263,-163.892066,0.00014384,2]
[339204457,1727321372163,-164.734221,0.00014391,2]
[339204458,1727321374102,-164.734221,0.00014437,2]
[339204459,1727321374124,-164.734221,0.00014483,2]
[339204498,1727321432551,-164.734221,0.00014529,2]
[339204500,1727321432561,-164.734221,0.00014574,2]
[339204502,1727321432570,-152.46551302,0.00014602,2]
[339204504,1727321432581,-243.74507306,0.00014612,2]
[339204506,1727321432590,-164.734221,0.0001462,2]
[339204508,1727321432600,-164.734221,0.00014666,2]
[339204510,1727321432609,-1937.00942293,0.00014688,2]
[339204512,1727321432618,-164.734221,0.00014712,2]
[339204514,1727321432628,-164.734221,0.00014758,2]
[339204516,1727321432637,-164.734221,0.00014804,2]
[339204518,1727321432646,-164.734221,0.0001485,2]
[339204520,1727321432656,-163.892066,0.00015068,2]
[339204523,1727321432665,-237.05789961,0.000151,2]
[339204526,1727321432675,-304.3537636,0.000151,2]
[339204528,1727321432685,-243.74507306,0.00015256,2]
[339204530,1727321432697,-153.0,0.0001537,2]
[339204532,1727321432707,-153.0,0.00015425,2]
[339204534,1727321432719,-300.0,0.00015899,2]
[339204536,1727321432729,-300.0,0.00015899,2]
[339204539,1727321432740,-2317.13614369,0.000159,2]
[339204541,1727321432751,-243.74507306,0.000159,2]
[339204543,1727321432761,-285.4155408,0.0001598,2]
[339204545,1727321432770,-508.23152785,0.00015999,2]
[339204547,1727321432781,-217.69599215,0.00015999,2]
[339204549,1727321432792,-186.74356015,0.00016,2]
[339204551,1727321432802,-544.87114276,0.00016,2]
[339204553,1727321432813,-18892.90334666,0.00016,2]
[339204556,1727321432826,-15913.31690138,0.00016,2]
[339204616,1727321443812,-2544.61704297,0.00016,2]
[339204618,1727321443826,-6333.2,0.00016,2]
[339204799,1727321831186,164.327352,0.00013014,2]
[339206525,1727322345187,-300.0,0.00014987,2]
[339206526,1727322345213,-1253.2205022,0.00014988,2]
[339206554,1727322350097,-1552.4625627,0.00014988,2]
[339206894,1727322442103,-244.37701984,0.00014987,2]
[339206904,1727322447149,-55.62298016,0.00014987,2]
[339206905,1727322447185,-2348.38604915,0.00014988,2]
[339207280,1727322631843,-300.0,0.00014987,2]
[339207282,1727322631854,-402.07704568,0.00014988,2]
[339207297,1727322638248,-10920.28017207,0.00014988,2]
[339207303,1727322639883,-724.188,0.00014988,2]
[339207306,1727322642819,-2372.85,0.00014988,2]
[339207307,1727322642903,-5326.5356682,0.00014988,2]
[339207308,1727322642913,-216.707918,0.00015126,2]
[339207309,1727322642924,-216.707918,0.00015915,2]
[339207311,1727322642933,-228.33243264,0.00015956,2]
[339207314,1727322642943,-1000.0,0.00015972,2]
[339207316,1727322642953,-228.33243264,0.00015983,2]
[339207318,1727322642962,-150.01,0.00015999,2]
[339207320,1727322642972,-4842.32868041,0.00015999,2]
[339207322,1727322642982,-16437.96270899,0.00016,2]
[339207324,1727322642991,-2000.0,0.00016,2]
[339207326,1727322643003,-151.0,0.00016,2]
[339207328,1727322643013,-151.0,0.00016,2]
[339207329,1727322643024,-190.504285,0.00016,2]
[339207330,1727322643034,-151.0,0.00016,2]
[339207331,1727322643043,-284.840156,0.00016,2]
[339207333,1727322643053,-228.33243264,0.0001601,2]
[339207335,1727322643063,-228.33243264,0.00016037,2]
[339207337,1727322643073,-151.0,0.00016045,2]
[339207339,1727322643083,-151.0,0.00016045,2]
[339207340,1727322643092,-175.43076328,0.00016045,2]
[339207341,1727322643101,-331.17668699,0.00016045,2]
[339207342,1727322643111,-624.26121382,0.00016045,2]
[339207343,1727322643121,-500.0,0.00016045,2]
[339207344,1727322643131,-483.72394916,0.00016045,2]
[339207345,1727322643140,-500.0,0.00016045,2]
[339207346,1727322643151,-500.0,0.00016045,2]
[339207347,1727322643162,-500.0,0.00016045,2]
[339207348,1727322643171,-500.0,0.00016045,2]
[339207349,1727322643181,-193.89630409,0.00016045,2]
[339207375,1727322645986,-267.11211437,0.00016045,2]
[339207431,1727322769924,500.0,0.00021999,120]
[339207432,1727322770240,514.26645304,0.00021999,120]
[339207468,1727323326342,403.1263593,0.00013942,2]
[339207469,1727323361962,500.0,0.00021999,120]
[339207470,1727323362385,500.0,0.00021999,120]
[339207471,1727323362646,500.0,0.00021999,120]
[339207472,1727323362964,500.0,0.00021999,120]
[339207473,1727323363277,500.0,0.00021999,120]
[339207474,1727323363572,605.76251873,0.00021999,120]
[339207491,1727323553401,-300.0,0.00014123,2]
[339207492,1727323553427,-300.0,0.00014123,2]
[339207493,1727323553448,-2222.31324457,0.00014124,2]
[339207494,1727323562047,-300.0,0.00014123,2]
[339207495,1727323562070,-2505.9113679,0.00014124,2]
[339207498,1727323626100,-167.0,0.00014123,2]
[339207499,1727323626121,-300.0,0.00014123,2]
[339207500,1727323626143,-907.43770198,0.00014124,2]
[339207502,1727323746126,-300.0,0.00014123,2]
[339207503,1727323746148,-19264.33768555,0.00014124,2]
[339207504,1727323746171,-166.666666,0.00014349,2]
[339207567,1727323838486,-220.683547,0.00014412,2]
[339207569,1727323838495,-166.666666,0.00014499,2]
[339207571,1727323838504,-1237.33527309,0.00014645,2]
[339207572,1727323838513,-59.99187225,0.00014648,2]
[339207575,1727323838525,-106.67479375,0.00014648,2]
[339207577,1727323838538,-166.666666,0.00014798,2]
[339207579,1727323838548,-166.666666,0.00014947,2]
[339207581,1727323838560,-1500.0,0.00015,2]
[339207583,1727323838569,-163.980466,0.00015025,2]
[339207585,1727323838581,-2030.5416871,0.00015034,2]
[339207586,1727323838591,-166.666666,0.00015097,2]
[339207588,1727323838601,-163.980466,0.000151,2]
[339207590,1727323838610,-2003.13974268,0.000155,2]
[339207592,1727323838621,-300.0,0.00015584,2]
[339207594,1727323838631,-151.0,0.00015589,2]
[339207596,1727323838642,-151.0,0.00015589,2]
[339207598,1727323838652,-151.0,0.00015589,2]
[339207600,1727323838662,-182.019672,0.00015589,2]
[339207602,1727323838672,-151.0,0.00015589,2]
[339207604,1727323838682,-151.0,0.00015589,2]
[339207606,1727323838691,-151.0,0.00015589,2]
[339207608,1727323838701,-412.0989743,0.00015589,2]
[339207609,1727323838710,-412.0989743,0.00015589,2]
[339207611,1727323838720,-412.0989743,0.00015589,2]
[339207613,1727323838730,-412.0989743,0.00015589,2]
[339207615,1727323838740,-412.0989743,0.00015589,2]
[339207617,1727323838750,-412.0989743,0.00015589,2]
[339207619,1727323838760,-412.0989743,0.00015589,2]
[339207621,1727323838770,-412.0989743,0.00015589,2]
[339207623,1727323838779,-412.0989743,0.00015589,2]
[339207625,1727323838789,-412.0989743,0.00015589,2]
[339207627,1727323838798,-412.0989743,0.00015589,2]
[339207629,1727323838808,-412.0989743,0.00015589,2]
[339207630,1727323838818,-412.0989743,0.00015589,2]
[339207632,1727323838828,-412.0989743,0.00015589,2]
[339207634,1727323838838,-412.0989743,0.00015589,2]
[339207636,1727323838849,-412.0989743,0.00015589,2]
[339207637,1727323838866,-412.0989743,0.00015589,2]
[339207638,1727323838877,-412.0989743,0.00015589,2]
[339207639,1727323838886,-412.0989743,0.00015589,2]
[339207640,1727323838895,-412.0989743,0.00015589,2]
[339207641,1727323838905,-412.0989743,0.00015589,2]
[339207642,1727323838915,-412.0989743,0.00015589,2]
[339207643,1727323838924,-215.493832,0.00015589,2]
[339207644,1727323838935,-228.33243264,0.0001569,2]
[339207645,1727323838945,-151.0,0.00015725,2]
[339207646,1727323838954,-309.124601,0.00015725,2]
[339207647,1727323838963,-151.0,0.00015725,2]
[339207648,1727323838973,-151.0,0.00015754,2]
[339207649,1727323838983,-500.0,0.00015773,2]
[339207650,1727323838993,-220.683547,0.00015781,2]
[339207651,1727323839003,-500.0,0.00015789,2]
[339207652,1727323839012,-500.0,0.00015789,2]
[339207653,1727323839022,-500.0,0.00015789,2]
[339207654,1727323839031,-500.0,0.00015789,2]
[339207655,1727323839040,-651.47727167,0.00015789,2]
[339207656,1727323839050,-500.0,0.00015789,2]
[339207657,1727323839060,-500.0,0.00015789,2]
[339207658,1727323839069,-500.0,0.00015789,2]
[339207659,1727323839079,-500.0,0.00015789,2]
[339207660,1727323839088,-507.66337362,0.00015789,2]
[339207661,1727323839098,-500.0,0.00015789,2]
[339207662,1727323839108,-500.0,0.00015789,2]
[339207663,1727323839117,-272.43557138,0.0001579,2]
[339207664,1727323839128,-186.74356015,0.0001579,2]
[339207665,1727323839137,-59688.2683601,0.0001579,2]
[339207666,1727323839147,-4595.91701559,0.0001579,2]
[339207667,1727323839157,-500.0,0.00015799,2]
[339207668,1727323839166,-482.8232911,0.00015799,2]
[339207669,1727323839176,-503.61883183,0.00015799,2]
[339207670,1727323839186,-231.82368089,0.00015799,2]
[339207671,1727323839196,-338.60676442,0.00015799,2]
[339207672,1727323839206,-500.0,0.00015799,2]
[339207673,1727323839215,-500.0,0.00015799,2]
[339207674,1727323839225,-500.0,0.00015799,2]
[339207675,1727323839236,-500.0,0.00015799,2]
[339207676,1727323839246,-500.0,0.00015799,2]
[339207677,1727323839256,-151.0,0.000158,2]
[339207678,1727323839266,-151.0,0.000158,2]
[339207679,1727323839471,-151.0,0.000158,2]
[339207680,1727323839484,-70903.31943904,0.000158,2]
[339207681,1727323839494,-59688.2683601,0.00015811,2]
[339207682,1727323839505,-4595.91701559,0.00015811,2]
[339207683,1727323839515,-3754.63582314,0.00015816,2]
[339207684,1727323839525,-151.0,0.00015821,2]
[339207685,1727323839534,-151.0,0.00015821,2]
[339207687,1727323839544,-151.0,0.00015821,2]
[339207688,1727323839553,-48348.19,0.00015862,2]
[339207689,1727323839562,-151.0,0.0001598,2]
[339207690,1727323839571,-1000.0,0.0001598,2]
[339207691,1727323839582,-385.31424835,0.00016,2]
[339207692,1727323839591,-212.9815737,0.00016044,2]
[339207693,1727323839601,-3228.21912027,0.00016044,2]
[339207694,1727323839610,-59688.2683601,0.00016051,2]
[339207695,1727323839620,-4595.91701559,0.00016051,2]
[339207696,1727323839629,-151.0,0.0001606,2]
[339207697,1727323839638,-151.0,0.0001606,2]
[339207698,1727323839648,-151.0,0.0001606,2]
[339207699,1727323839657,-309.124601,0.00016061,2]
[339207700,1727323839667,-309.124601,0.00016061,2]
[339207701,1727323839676,-151.0,0.00016061,2]
[339207702,1727323839686,-151.0,0.00016061,2]
[339207703,1727323839695,-151.0,0.00016061,2]
[339207704,1727323839705,-151.0,0.00016061,2]
[339207705,1727323839714,-151.0,0.00016061,2]
[339207706,1727323839723,-239.159273,0.00016061,2]
[339207707,1727323839735,-151.0,0.00016061,2]
[339207708,1727323839744,-151.0,0.00016061,2]
[339207709,1727323839754,-525.613,0.00016071,2]
[339207710,1727323839764,-150.16,0.00016071,2]
[339207711,1727323839774,-1217.0,0.00016071,2]
[339207712,1727323839784,-190.504285,0.00016071,2]
[339207713,1727323839793,-151.0,0.00016071,2]
[339207714,1727323839803,-309.124601,0.00016071,2]
[339207715,1727323839813,-151.0,0.00016071,2]
[339207716,1727323839826,-229.408558,0.00016073,2]
[339207717,1727323839837,-151.0,0.00016079,2]
[339207718,1727323839846,-309.124601,0.00016079,2]
[339207719,1727323839858,-151.0,0.00016079,2]
[339207721,1727323839868,-151.0,0.0001608,2]
[339207723,1727323839878,-151.0,0.0001608,2]
[339207725,1727323839888,-16712.19101745,0.0001608,2]
[339207727,1727323839902,-28103.62658707,0.0001608,2]
[339207731,1727323839944,-151.0,0.00015589,2]
[339207732,1727323839954,-151.0,0.00015589,2]
[339207733,1727323839963,-14872.45075558,0.0001608,2]
[339207734,1727323839973,-4595.91701559,0.0001608,2]
[339207735,1727323839982,-153.0,0.00016082,2]
[339207736,1727323839992,-151.289,0.0001609,2]
[339207737,1727323840002,-151.0,0.0001609,2]
[339207738,1727323840011,-309.124601,0.0001609,2]
[339207739,1727323840021,-309.124601,0.0001609,2]
[339207740,1727323840031,-59688.2683601,0.0001609,2]
[339207741,1727323840040,-1552.65638539,0.0001609,2]
[339207742,1727323840050,-2514.2342649,0.0001609,2]
[339207762,1727323846214,-152.71530022,0.000157,2]
[339207763,1727323862991,540.61796936,0.00021999,120]
[339207764,1727323865383,522.96511807,0.00021999,120]
[339207765,1727323872321,514.56760471,0.00021999,120]
[339207766,1727323894012,515.70693339,0.00021999,120]
[339207769,1727323907152,510.23885314,0.00021999,120]
[339207770,1727323942636,501.38980075,0.00021999,120]
[339207771,1727323949199,510.06543448,0.00021999,120]
[339207772,1727323956959,511.59534402,0.00021999,120]
[339207773,1727323965535,500.0,0.00021999,120]
[339207774,1727323965880,500.0,0.00021999,120]
[339207775,1727323966233,500.0,0.00021999,120]
[339207776,1727323966518,500.0,0.00021999,120]
[339207777,1727323966700,500.0,0.00021999,120]
[339207778,1727323966953,500.0,0.00021999,120]
[339207779,1727323967161,500.0,0.00021999,120]
[339207780,1727323967251,500.0,0.00021999,120]
[339207781,1727323967470,539.14633387,0.00021999,120]
[339207782,1727323967590,500.0,0.00021999,120]
[339207783,1727323967875,500.0,0.00021999,120]
[339207784,1727323968205,337.82,0.00021999,120]
[339207785,1727323980307,550.42726856,0.00021999,120]
[339207786,1727323981344,500.0,0.00021999,120]
[339207787,1727323981827,310.65510418,0.00021999,120]
[339207788,1727323984606,509.15312924,0.00021999,120]
[339207789,1727323998337,542.55713975,0.00021999,120]
[339207790,1727324000484,509.55347813,0.00021999,120]
[339207792,1727324058118,500.0,0.00021999,120]
[339207793,1727324058422,500.0,0.00021999,120]
[339207794,1727324059148,500.0,0.00021999,120]
[339207795,1727324059323,500.0,0.00021999,120]
[339207796,1727324060088,500.0,0.00021999,120]
[339207797,1727324060389,423.0754056,0.00021999,120]
[339207798,1727324135029,503.44986523,0.00021999,120]
[339207815,1727324151484,150.61697862,0.00021999,120]
[339207816,1727324153686,501.81572355,0.00021999,120]
[339207818,1727324211387,512.68578645,0.00021999,120]
[339207819,1727324215822,505.63915514,0.00021999,120]
[339207820,1727324219509,503.05503346,0.00021999,120]
[339207821,1727324233016,506.82701739,0.00021999,120]
[339207823,1727324247865,500.0,0.00021999,120]
[339207824,1727324248162,500.0,0.00021999,120]
[339207825,1727324248420,500.0,0.00021999,120]
[339207826,1727324248676,500.0,0.00021999,120]
[339207827,1727324248986,505.44975783,0.00021999,120]
[339207828,1727324257306,500.0,0.00021999,120]
[339207829,1727324258120,500.0,0.00021999,120]
[339207830,1727324258436,500.0,0.00021999,120]
[339207831,1727324258690,500.0,0.00021999,120]
[339207832,1727324259013,500.0,0.00021999,120]
[339207833,1727324259313,513.31571785,0.00021999,120]
[339207834,1727324274325,500.0,0.00021999,120]
[339207835,1727324274635,500.0,0.00021999,120]
[339207836,1727324274926,500.0,0.00021999,120]
[339207837,1727324275205,505.6220653,0.00021999,120]
[339207838,1727324301549,231.00189736,0.00021999,120]
[339207840,1727324339746,521.26813881,0.00021999,120]
[339207841,1727324342247,505.51169021,0.00021999,120]
[339207842,1727324344718,506.40509097,0.00021999,120]
[339207843,1727324347139,502.15630092,0.00021999,120]
[339207844,1727324349781,522.68410418,0.00021999,120]
[339207845,1727324350169,502.72050164,0.00021999,120]
[339207846,1727324352773,500.0,0.00021999,120]
[339207847,1727324353133,330.80377162,0.00021999,120]
[339207848,1727324354100,505.54829315,0.00021999,120]
[339207849,1727324366950,523.59532953,0.00021999,120]
[339207850,1727324373508,509.05034575,0.00021999,120]
[339207851,1727324386201,500.0,0.00021999,120]
[339207852,1727324391180,541.26906158,0.00021999,120]
[339207853,1727324434184,538.73418896,0.00021999,120]
[339207854,1727324441982,511.50579196,0.00021999,120]
[339207855,1727324445153,500.0,0.00021999,120]
[339207856,1727324445484,500.0,0.00021999,120]
[339207857,1727324445763,533.29,0.00021999,120]
[339207858,1727324467526,510.57163235,0.00021999,120]
[339207859,1727324489355,-1000.0,0.00023,120]
[339207860,1727324489387,-199.9350137,0.00023233,120]
[339207861,1727324489417,-500.0,0.00023287,120]
[339207862,1727324489444,-500.0,0.00023287,120]
[339207863,1727324489472,-500.0,0.00023287,120]
[339207864,1727324489499,-500.0,0.00023287,120]
[339207865,1727324489509,-500.0,0.00023287,120]
[339207866,1727324489527,-199.9350137,0.00023287,120]
[339207867,1727324489545,-300.0649863,0.00023287,120]
[339207868,1727324489554,-199.9350137,0.00023287,120]
[339207869,1727324489570,-300.0649863,0.00023287,120]
[339207870,1727324489579,-199.9350137,0.00023287,120]
[339207871,1727324489617,-300.0649863,0.00023287,120]
[339207872,1727324489627,-199.9350137,0.00023287,120]
[339207873,1727324489654,-300.0649863,0.00023287,120]
[339207874,1727324489663,-7.0649863,0.00023287,120]
[339207875,1727324542101,517.15775307,0.00021999,120]
[339207900,1727324556735,500.0,0.00021999,120]
[339207901,1727324557029,255.61763757,0.00021999,120]
[339207902,1727324563129,168.14504473,0.00021999,120]
[339207903,1727324731169,-174.6172807,0.00014225,2]
[339207904,1727324731200,-2773.8528025,0.00014827,2]
[339207928,1727324892949,500.0,0.00021999,120]
[339207929,1727324893227,500.0,0.00021999,120]
[339207930,1727324893877,500.0,0.00021999,120]
[339207931,1727324894405,500.0,0.00021999,120]
[339207932,1727324894639,500.0,0.00021999,120]
[339207933,1727324894942,628.39187373,0.00021999,120]
[339208073,1727325040042,-6344.0405871,0.00014827,2]
[339208074,1727325040052,-600.0,0.00015762,2]
[339208075,1727325040061,-300.0,0.00015831,2]
[339208076,1727325040227,-5165.76626701,0.00015832,2]
[339208077,1727325040237,-2183.9372076,0.00015836,2]
[339208078,1727325040246,-239.05303019,0.00015926,2]
[339208079,1727325040256,-445.2959304,0.00015926,2]
[339208080,1727325040265,-40098.1838761,0.00015927,2]
[339208081,1727325040274,-253.14851237,0.00015936,2]
[339208082,1727325040284,-253.14851236,0.00015967,2]
[339208083,1727325040293,-1000.0,0.0001599,2]
[339208084,1727325040303,-253.14851236,0.00015998,2]
[339208085,1727325040312,-412.0989743,0.00016,2]
[339208086,1727325040321,-412.0989743,0.00016,2]
[339208087,1727325040331,-412.0989743,0.00016,2]
[339208088,1727325040340,-412.0989743,0.00016,2]
[339208089,1727325040353,-412.0989743,0.00016,2]
[339208090,1727325040368,-412.0989743,0.00016,2]
[339208091,1727325040377,-412.0989743,0.00016,2]
[339208092,1727325040387,-412.0989743,0.00016,2]
[339208093,1727325040397,-412.0989743,0.00016,2]
[339208094,1727325040406,-412.0989743,0.00016,2]
[339208095,1727325040415,-3000.0,0.00016,2]
[339208096,1727325040425,-1500.0,0.00016,2]
[339208097,1727325040434,-3000.0,0.0001601,2]
[339208098,1727325040444,-3000.0,0.0001602,2]
[339208099,1727325040454,-253.14851236,0.00016029,2]
[339208100,1727325040464,-3000.0,0.0001603,2]
[339208101,1727325040473,-150.16,0.00016036,2]
[339208102,1727325040483,-525.613,0.00016036,2]
[339208103,1727325040492,-1217.0,0.00016036,2]
[339208104,1727325040501,-3000.0,0.0001604,2]
[339208105,1727325040511,-3000.0,0.0001605,2]
[339208106,1727325040520,-1696.43129271,0.0001606,2]
[339208126,1727325043289,-656.23407402,0.0001606,2]
[339208145,1727325597123,500.0,0.00021999,120]
[339208172,1727326066928,500.0,0.00021999,120]
[339208173,1727326067289,500.0,0.00021999,120]
[339208174,1727326067570,500.0,0.00021999,120]
[339208175,1727326068172,500.0,0.00021999,120]
[339208176,1727326068494,500.0,0.00021999,120]
[339208177,1727326068773,500.0,0.00021999,120]
[339208178,1727326069037,500.0,0.00021999,120]
[339208179,1727326069392,500.0,0.00021999,120]
[339208180,1727326069700,500.0,0.00021999,120]
[339208181,1727326070024,492.61942195,0.00021999,120]
[339208237,1727326238557,-2620.90811043,0.00014451,2]
[339208243,1727326238612,-762.46256267,0.00014451,2]
[339208245,1727326238621,-777.650031,0.00014493,2]
[339208247,1727326238630,-500.0,0.00014837,2]
[339208249,1727326238639,-249.710133,0.00014914,2]
[339208251,1727326238648,-193.11413111,0.00014937,2]
[339208253,1727326238658,-249.710133,0.00014955,2]
[339208255,1727326238667,-249.710133,0.00014996,2]
[339208257,1727326238676,-249.710133,0.00015037,2]
[339208259,1727326238685,-249.710133,0.00015078,2]
[339208261,1727326238694,-249.710133,0.00015119,2]
[339208263,1727326238704,-249.710133,0.00015159,2]
[339208265,1727326238713,-777.650031,0.00015178,2]
[339208267,1727326238722,-249.710133,0.000152,2]
[339208269,1727326238731,-249.710133,0.00015241,2]
[339208271,1727326238740,-249.710133,0.00015282,2]
[339208273,1727326238749,-412.0989743,0.000153,2]
[339208275,1727326238758,-25.7739536,0.00015323,2]
[339208356,1727326243368,-223.9361794,0.00015323,2]
[339208373,1727326243587,-249.710133,0.00015364,2]
[339208374,1727326243597,-412.0989743,0.000154,2]
[339208375,1727326243606,-249.710133,0.00015405,2]
[339208376,1727326243615,-163.94458029,0.00015442,2]
[339208405,1727326912811,19707.35982549,3.5e-06,120]
[339208407,1727326997789,187.398546,0.00014005,2]
[339208408,1727326998187,187.398546,0.00014043,2]
[339208409,1727326998402,187.398546,0.00014082,2]
[339208410,1727327093213,23038.5303075,0.00013531,2]
[339208411,1727327124763,1003.752056,0.00013967,2]
[339208412,1727327134291,-187.398546,0.0001412,2]
[339208413,1727327134314,-187.398546,0.00014158,2]
[339208414,1727327134340,-187.398546,0.00014197,2]
[339208415,1727327134362,-187.398546,0.00014235,2]
[339208416,1727327134386,-187.398546,0.00014274,2]
[339208417,1727327134409,-187.398546,0.00014312,2]
[339208418,1727327134431,-187.398546,0.00014351,2]
[339208419,1727327134453,-115.41399614,0.00014389,2]
[339208430,1727327355117,-196.43896982,0.00014366,2]
[339208431,1727327363155,-71.98454986,0.00014389,2]
[339208432,1727327363177,-187.398546,0.00014427,2]
[339208433,1727327363198,-2787.32560042,0.00014427,2]
[339208563,1727327438906,-212.67439958,0.00014427,2]
[339208564,1727327438915,-187.398546,0.00014466,2]
[339208565,1727327438931,-187.398546,0.00014504,2]
[339208566,1727327438944,-187.398546,0.00014543,2]
[339208567,1727327438954,-187.398546,0.00014581,2]
[339208568,1727327438964,-187.398546,0.00014619,2]
[339208569,1727327438974,-1003.752056,0.00014651,2]
[339208570,1727327438983,-187.398546,0.00014658,2]
[339208571,1727327438992,-187.398546,0.00014696,2]
[339208572,1727327439001,-18.99021145,0.00014735,2]
[339208635,1727327446721,-168.40833455,0.00014735,2]
[339208636,1727327446734,-412.0989743,0.000151,2]
[339208637,1727327446744,-412.0989743,0.000151,2]
[339208638,1727327446753,-300.0,0.0001515,2]
[339208639,1727327446762,-300.0,0.0001515,2]
[339208640,1727327446771,-153.0,0.00015151,2]
[339208641,1727327446780,-153.0,0.00015151,2]
[339208642,1727327446789,-153.0,0.00015151,2]
[339208643,1727327446799,-153.0,0.00015151,2]
[339208644,1727327446809,-153.0,0.00015151,2]
[339208645,1727327446818,-153.0,0.00015151,2]
[339208646,1727327446828,-153.0,0.00015151,2]
[339208647,1727327446837,-153.0,0.00015151,2]
[339208648,1727327446846,-412.0989743,0.000152,2]
[339208649,1727327446855,-412.0989743,0.000152,2]
[339208650,1727327446864,-4917.88329089,0.00015275,2]
[339208651,1727327446873,-153.0,0.00015288,2]
[339208652,1727327446882,-153.0,0.00015288,2]
[339208653,1727327446892,-153.0,0.00015288,2]
[339208654,1727327446901,-153.0,0.00015288,2]
[339208655,1727327446913,-153.0,0.00015288,2]
[339208656,1727327446924,-352.5505511,0.00015288,2]
[339208657,1727327446933,-1003.752056,0.00015336,2]
[339208658,1727327446948,-3190.78412112,0.0001593,2]
[339208659,1727327446958,-253.14851236,0.00015979,2]
[339208660,1727327446968,-1000.0,0.0001598,2]
[339208661,1727327446977,-385.31424835,0.00015989,2]
[339208662,1727327446986,-1475.0,0.00016,2]
[339208663,1727327446995,-3000.0,0.00016,2]
[339208664,1727327447005,-3000.0,0.0001601,2]
[339208665,1727327447014,-150.111,0.00016015,2]
[339208666,1727327447024,-150.0,0.00016015,2]
[339208667,1727327447034,-150.0,0.00016015,2]
[339208668,1727327447043,-150.046,0.00016015,2]
[339208669,1727327447052,-150.016,0.00016015,2]
[339208670,1727327447061,-525.0,0.00016015,2]
[339208671,1727327447070,-150.0,0.00016015,2]
[339208672,1727327447080,-1217.0,0.00016015,2]
[339208673,1727327447089,-3000.0,0.0001602,2]
[339208674,1727327447099,-612.13025512,0.00016029,2]
[339208675,1727327447108,-500.0,0.00016029,2]
[339208676,1727327447118,-156.31064177,0.00016029,2]
[339208677,1727327447128,-500.0,0.00016029,2]
[339208678,1727327447137,-500.0,0.00016029,2]
[339208679,1727327447147,-500.0,0.00016029,2]